bitfinex/quotes_ETHUSD_20250602
["timestamp","ask_amount","ask_price","bid_price","bid_amount"]
[1748879585533,9.45546791,2546.8,2546.5,8.15787966]
[1748879586501,4.3309,2546.7,2546.0,0.7587]
[1748879586628,9.45546791,2546.1,2545.7,4.9897]
[1748879586981,9.45546791,2545.8,2545.5,0.7587]
[1748879587258,9.45546791,2545.8,2545.5,4.68712534]
[1748879587461,9.45546791,2545.8,2545.5,8.15942534]
[1748879587618,9.45546791,2545.8,2545.7,3.92819263]
[1748879587824,9.45546791,2545.8,2545.7,11.92819263]
[1748879588426,9.45546791,2545.8,2545.7,8.0]
[1748879588824,9.45546791,2545.8,2545.7,11.92819263]
[1748879590461,9.45546791,2545.8,2545.7,8.0]
[1748879590658,9.45546791,2546.1,2545.9,3.92788404]
[1748879590972,9.45546791,2546.1,2545.7,11.92810532]
[1748879591129,9.45546791,2545.8,2545.7,11.92810532]
[1748879591338,9.45546791,2545.8,2545.7,8.0]
[1748879591637,9.45546791,2545.8,2545.7,11.92819263]
[1748879592280,9.45546791,2545.8,2545.7,14.01272589]
[1748879593335,9.45546791,2545.8,2545.7,11.92819263]
[1748879595891,9.45546791,2545.8,2545.7,8.0]
[1748879596237,9.45546791,2545.8,2545.7,11.92819263]
[1748879596435,9.45546791,2545.8,2545.5,0.7587]
[1748879596655,9.45546791,2545.8,2545.3,8.15779797]
[1748879596891,9.45546791,2545.4,2545.3,11.92879797]
[1748879597174,9.45546791,2545.4,2545.3,16.15679797]
[1748879597549,9.45546791,2545.4,2545.2,3.92894503]
[1748879597737,9.45546791,2545.4,2545.1,4.6837354]
[1748879597943,9.45546791,2545.4,2545.2,12.228]
[1748879598277,9.45546791,2545.4,2544.9,4.228]
[1748879598278,3.92890019,2545.3,2544.9,4.228]
[1748879598578,9.55536791,2545.5,2545.4,3.92865561]
[1748879598774,9.45546791,2545.5,2545.2,4.228]
[1748879598986,9.45546791,2545.5,2545.2,8.15696432]
[1748879599165,9.45546791,2545.5,2545.2,4.228]
[1748879599473,9.45546791,2545.5,2545.2,8.15691366]
[1748879599875,9.85716015,2545.5,2545.3,3.92866479]
[1748879600757,0.40169224,2545.5,2545.4,3.92865561]
[1748879601075,9.45546791,2545.6,2545.3,3.92873845]
[1748879601283,9.45546791,2545.6,2545.3,3.96809404]
[1748879601491,9.45546791,2545.6,2545.3,0.03928408]
[1748879601648,13.38393116,2545.6,2545.2,9.44219256]
[1748879601846,9.45546791,2545.3,2545.1,8.0]
[1748879602083,13.38439517,2545.3,2544.9,0.7904]
[1748879602296,9.45546791,2545.0,2544.9,8.0]
[1748879602784,9.83991558,2545.0,2544.9,11.92942748]
[1748879605278,9.83991558,2545.0,2544.9,16.15642748]
[1748879606946,0.55,2546.0,2545.3,3.92880996]
[1748879607262,9.45546791,2545.5,2545.2,3.92890242]
[1748879608291,9.45546791,2545.5,2545.1,4.226]
[1748879608588,9.45546791,2545.2,2545.1,3.92911869]
[1748879609296,9.45546791,2545.2,2545.1,8.15511869]
[1748879609595,9.45546791,2545.2,2545.1,4.226]
[1748879609782,9.45546791,2545.2,2545.1,8.15511869]
[1748879609986,9.83968438,2545.2,2545.1,8.15511869]
[1748879610292,9.83968438,2545.2,2545.1,3.92911869]
[1748879611097,5.09995473,2545.9,2545.4,3.92865561]
[1748879611098,9.45546791,2545.5,2545.4,3.92865561]
[1748879611629,9.45546791,2545.5,2545.4,8.15365561]
[1748879611768,9.45546791,2545.8,2545.5,3.92850127]
[1748879612097,9.45546791,2545.8,2545.6,3.92827153]
[1748879612397,9.45546791,2545.8,2545.4,8.15363639]
[1748879612700,9.45546791,2545.8,2545.4,8.15358593]
[1748879613060,9.83869621,2545.8,2545.5,3.92839922]
[1748879613260,9.83869621,2545.8,2545.4,4.225]
[1748879613261,15.54626504,2545.8,2545.4,12.225]
[1748879613494,9.45546791,2545.5,2545.4,16.15365561]
[1748879614371,9.45546791,2545.5,2545.4,12.225]
[1748879614570,9.45546791,2545.5,2545.4,8.0]
[1748879614779,9.45546791,2545.5,2545.4,12.225]
[1748879615396,9.45546791,2545.5,2545.4,11.92865561]
[1748879616873,9.45546791,2545.5,2545.4,8.0]
[1748879617496,9.45546791,2545.5,2545.4,11.92865561]
[1748879619006,9.83869621,2545.8,2545.4,10.00804314]
[1748879619155,9.45546791,2545.7,2545.6,3.92834695]
[1748879619359,0.0999,2546.1,2545.8,3.92798227]
[1748879619559,0.0999,2546.1,2545.8,3.9279108]
[1748879619782,0.0999,2546.1,2545.9,3.9278794]
[1748879620063,0.0999,2546.1,2545.8,3.92794931]
[1748879620296,0.0999,2546.1,2545.6,4.26227932]
[1748879620456,4.62909766,2546.0,2545.7,11.92819263]
[1748879620655,4.62909766,2546.2,2546.0,0.7657]
[1748879620862,4.62909766,2546.2,2546.1,3.9275755]
[1748879621176,0.39549664,2546.2,2546.1,16.1505755]
[1748879621486,0.0999,2546.6,2546.1,16.1505755]
[1748879621487,9.42151445,2546.8,2546.1,14.30738953]
[1748879621698,9.42151445,2546.8,2546.4,3.92699852]
[1748879622007,9.42151445,2546.8,2546.4,8.14899852]
[1748879622559,9.42151445,2546.5,2546.4,4.222]
[1748879623161,9.42151445,2546.5,2546.4,8.14911278]
[1748879623691,9.81848133,2546.5,2546.4,8.14911278]
[1748879625005,9.42151445,2546.5,2546.4,8.14911278]
[1748879625203,9.42151445,2546.5,2546.4,10.17874831]
[1748879625388,9.42151445,2546.5,2546.4,18.17874831]
[1748879625585,9.42151445,2546.7,2546.6,3.92672854]
[1748879626603,9.42151445,2546.7,2546.5,11.92688568]
[1748879626807,9.42151445,2546.7,2546.5,8.0]
[1748879626997,9.42151445,2546.7,2546.6,3.92680436]
[1748879629416,9.42151445,2546.7,2546.5,11.92690966]
[1748879629720,9.42151445,2546.7,2546.6,3.92680436]
[1748879630216,9.42151445,2546.7,2546.5,8.0]
[1748879630902,9.42151445,2546.7,2546.5,11.92692619]
[1748879632009,9.42151445,2546.7,2546.5,11.9269491]
[1748879632213,9.81250505,2546.7,2546.5,11.9269491]
[1748879632675,9.81250505,2546.7,2546.5,8.0]
[1748879633015,10.80574555,2546.7,2546.0,0.8024]
[1748879633214,9.42151445,2546.1,2545.8,0.8024]
[1748879633418,9.42151445,2546.1,2545.9,4.218]
[1748879633633,9.42151445,2546.1,2546.0,8.14572977]
[1748879633980,9.42151445,2546.1,2546.0,16.14572977]
[1748879634196,9.42151445,2546.1,2545.9,3.92783341]
[1748879634423,9.42151445,2546.1,2545.9,3.92780876]
[1748879634719,9.42151445,2546.1,2546.0,3.92772977]
[1748879635598,9.42151445,2546.1,2545.8,8.0]
[1748879635807,9.42151445,2546.1,2545.8,11.92797846]
[1748879636176,9.42151445,2546.1,2546.0,3.92772977]
[1748879636618,9.42151445,2546.1,2545.9,3.92781662]
[1748879636885,9.42151445,2546.1,2545.8,11.92798698]
[1748879637105,9.42151445,2546.1,2545.7,8.14614823]
[1748879637377,9.42151445,2545.8,2545.7,16.14614823]
[1748879638616,9.42151445,2545.8,2545.7,8.0]
[1748879639618,9.42151445,2545.8,2545.0,0.8042]
[1748879639788,3.92811122,2545.8,2545.4,8.0]
[1748879640117,9.42151445,2545.5,2545.4,8.0]
[1748879640429,9.42151445,2545.5,2545.4,11.92865561]
[1748879640616,9.42151445,2545.5,2545.4,8.0]
[1748879640922,9.42151445,2545.5,2545.2,4.216]
[1748879640923,9.52141445,2545.5,2545.2,4.216]
[1748879641130,9.52141445,2545.5,2545.2,8.0]
[1748879642448,0.0999,2545.0,2544.2,0.7744]
[1748879642600,9.42151445,2544.4,2544.2,4.70482157]
[1748879642799,9.42151445,2544.4,2544.0,4.705216]
[1748879643033,9.42151445,2544.4,2544.1,3.95063068]
[1748879643230,9.42151445,2544.4,2544.3,3.93035412]
[1748879643412,9.42151445,2544.4,2544.2,8.0]
[1748879643727,9.42151445,2544.4,2544.1,5.23778126]
[1748879643932,9.42151445,2544.4,2544.2,3.93049061]
[1748879644441,9.81754471,2544.4,2544.1,8.02]
[1748879644647,9.81754471,2544.4,2544.1,11.95065282]
[1748879644945,9.81754471,2544.4,2544.2,3.93037395]
[1748879645112,9.81754471,2544.4,2544.1,11.95057852]
[1748879645313,9.81754471,2544.4,2544.1,11.95065384]
[1748879646130,9.81754471,2544.4,2544.1,8.02]
[1748879647014,9.81754471,2544.4,2544.1,11.95063369]
[1748879647251,9.81754471,2544.4,2544.1,8.02]
[1748879647615,9.81754471,2544.4,2544.1,11.95064865]
[1748879647817,9.81754471,2544.4,2544.1,11.95054445]
[1748879648018,9.81754471,2544.4,2544.1,16.16654445]
[1748879648222,9.81754471,2544.4,2544.1,12.236]
[1748879648958,9.81754471,2544.4,2544.2,3.93049588]
[1748879649250,9.81754471,2544.4,2544.3,8.14635412]
[1748879649766,9.81754471,2544.4,2544.3,4.216]
[1748879650416,0.39603026,2544.4,2544.1,4.236]
[1748879650616,9.42151445,2544.4,2544.1,12.236]
[1748879650925,0.0999,2544.8,2544.2,11.93039299]
[1748879651134,9.42151445,2544.4,2544.2,11.93042191]
[1748879651331,9.42151445,2544.4,2544.3,3.93035412]
[1748879652154,9.42151445,2544.4,2544.2,11.93042816]
[1748879652342,9.817819,2544.4,2544.2,11.93042816]
[1748879652857,9.817819,2544.4,2544.2,8.0]
[1748879654960,9.817819,2544.4,2544.2,11.93050847]
[1748879656027,9.817819,2544.4,2544.3,3.93035412]
[1748879656346,9.817819,2544.4,2544.2,8.0]
[1748879656653,0.39630455,2544.4,2544.3,3.93035412]
[1748879656868,9.42151445,2544.4,2544.3,3.93035412]
[1748879657072,9.81204796,2544.4,2544.3,3.93035412]
[1748879657278,4.63369733,2544.4,2544.3,3.93035412]
[1748879658049,4.02956973,2544.8,2544.3,3.93029151]
[1748879658280,4.63369733,2544.7,2544.6,0.8067]
[1748879658478,4.63369733,2544.7,2544.6,16.95050375]
[1748879661095,5.02106541,2544.7,2544.6,16.95050375]
[1748879661251,0.38736808,2544.7,2544.6,16.95050375]
[1748879661585,9.4334376,2544.8,2544.7,3.92973631]
[1748879662448,9.4334376,2544.8,2544.6,11.92980232]
[1748879662659,9.4334376,2544.8,2544.7,8.14273631]
[1748879662859,9.4334376,2544.8,2544.7,4.213]
[1748879663053,9.5333376,2544.8,2544.7,4.213]
[1748879663271,9.5333376,2544.8,2544.7,8.14273631]
[1748879663661,9.4334376,2544.8,2544.7,8.14273631]
[1748879664070,9.81894303,2544.8,2544.7,3.92973631]
[1748879664484,9.81894303,2544.8,2544.7,8.14273631]
[1748879667313,9.81894303,2544.8,2544.7,4.212]
[1748879667667,9.81894303,2544.8,2544.7,8.14173631]
[1748879668603,0.38550543,2544.8,2544.7,8.14173631]
[1748879668807,9.4334376,2544.8,2544.7,8.14173631]
[1748879668966,9.4334376,2544.8,2544.7,4.212]
[1748879670063,9.4334376,2544.8,2544.7,8.14173631]
[1748879670308,9.4334376,2544.8,2544.7,4.212]
[1748879670476,9.4334376,2544.8,2544.7,8.14166261]
[1748879671817,9.82771691,2544.8,2544.7,8.14166261]
[1748879675547,9.82771691,2544.8,2544.7,10.14881659]
[1748879675898,9.82771691,2544.8,2544.7,8.14166261]
[1748879678135,9.82771691,2544.8,2544.7,8.5042219]
[1748879678342,9.82771691,2544.8,2544.7,8.14166261]
[1748879679318,9.82771691,2544.8,2544.7,16.95076261]
[1748879679319,0.39427931,2544.8,2544.7,16.95076261]
[1748879679525,9.4334376,2545.1,2544.9,3.92941205]
[1748879679824,9.4334376,2545.1,2544.9,8.13841205]
[1748879680005,9.82908585,2545.1,2544.9,8.13841205]
[1748879680207,9.82908585,2545.1,2545.0,3.92927308]
[1748879681444,5.02725495,2545.1,2545.0,3.92927308]
[1748879681944,5.02725495,2545.1,2544.9,8.13833999]
[1748879682445,5.02725495,2545.1,2545.0,3.92927308]
[1748879683247,5.02725495,2545.1,2544.9,8.13833292]
[1748879683856,5.02725495,2545.1,2544.9,4.207]
[1748879684762,5.02725495,2545.1,2544.8,3.92947853]
[1748879684963,0.39564825,2545.1,2544.9,4.207]
[1748879685112,4.6316067,2545.0,2544.9,4.207]
[1748879686850,4.6316067,2545.0,2544.9,3.92942748]
[1748879689459,0.39292645,2545.1,2545.0,4.71077308]
[1748879689634,4.6316067,2545.1,2545.0,4.71077308]
[1748879689957,4.6316067,2545.1,2545.0,3.92927308]
[1748879692122,5.03345169,2545.1,2544.9,4.205]
[1748879692319,5.03345169,2545.1,2545.0,3.92927308]
[1748879694836,5.03345169,2545.1,2544.8,8.0]
[1748879695022,4.6316067,2544.9,2544.8,16.13348399]
[1748879695663,0.40184499,2545.1,2545.0,3.92927308]
[1748879695836,4.6316067,2545.1,2545.0,3.92927308]
[1748879697227,4.6316067,2545.1,2544.8,11.92951296]
[1748879697432,8.66017785,2545.4,2544.9,3.92935186]
[1748879697634,4.7315067,2545.0,2544.8,8.0]
[1748879698166,4.7315067,2545.0,2544.8,11.92950602]
[1748879698468,4.7315067,2545.0,2544.8,8.0]
[1748879698671,4.7315067,2545.0,2544.5,3.92992886]
[1748879698833,4.6316067,2544.6,2544.5,3.93004519]
[1748879699482,4.6316067,2544.6,2544.5,4.29283069]
[1748879699627,4.6316067,2544.6,2544.4,3.93011782]
[1748879699832,4.6316067,2544.6,2544.3,4.203]
[1748879700067,4.6316067,2544.4,2544.3,16.13326384]
[1748879701132,0.0999,2545.0,2544.3,18.22022553]
[1748879701338,0.0999,2545.0,2544.4,0.03929746]
[1748879701534,4.6316067,2544.5,2544.4,3.96949711]
[1748879701741,4.6316067,2544.5,2544.4,3.93019965]
[1748879701959,4.6316067,2544.5,2544.4,14.22383217]
[1748879702157,4.6316067,2544.5,2544.4,15.39673246]
[1748879702476,4.6316067,2544.7,2544.6,3.92989074]
[1748879702652,4.6316067,2544.7,2544.6,8.13189074]
[1748879702857,4.6316067,2544.7,2544.6,8.49354472]
[1748879703061,4.6316067,2544.7,2544.6,11.68894971]
[1748879704194,4.6316067,2544.7,2544.6,12.05054961]
[1748879704556,4.6316067,2544.7,2544.6,12.05055686]
[1748879704755,4.6316067,2544.7,2544.6,12.05055853]
[1748879704992,4.6316067,2544.7,2544.6,12.0505394]
[1748879705178,4.6316067,2544.7,2544.6,11.68894971]
[1748879705501,4.6316067,2544.7,2544.6,8.94209074]
[1748879705800,4.6316067,2544.7,2544.6,16.13089074]
[1748879706169,4.6316067,2544.7,2544.6,16.49260148]
[1748879706368,4.6316067,2544.7,2544.6,16.13089074]
[1748879706769,4.6316067,2544.7,2544.6,12.201]
[1748879707072,4.6316067,2544.7,2544.6,16.13089074]
[1748879707394,4.6316067,2544.7,2544.6,11.92989074]
[1748879707692,4.6316067,2544.7,2544.6,16.13089074]
[1748879707899,4.6316067,2544.7,2544.6,12.201]
[1748879708053,4.6316067,2544.7,2544.6,16.13089074]
[1748879708253,4.6316067,2544.7,2544.6,12.201]
[1748879708601,4.6316067,2544.7,2544.6,16.13089074]
[1748879709491,0.50082087,2545.1,2545.0,3.92927308]
[1748879709665,5.13242757,2545.1,2544.8,3.92951592]
[1748879709876,4.6316067,2544.9,2544.7,3.92970587]
[1748879710071,4.6316067,2544.8,2544.7,4.2]
[1748879710277,4.6316067,2544.8,2544.7,8.12973631]
[1748879711364,4.6316067,2544.8,2544.7,3.92973631]
[1748879711560,4.6316067,2544.8,2544.7,8.12973631]
[1748879711765,4.6316067,2544.8,2544.7,4.2]
[1748879712381,4.6316067,2544.8,2544.7,8.12973631]
[1748879714702,4.6316067,2544.8,2544.7,8.49237289]
[1748879714905,4.6316067,2544.8,2544.7,4.2]
[1748879715101,4.6316067,2544.8,2544.7,8.12973631]
[1748879715510,4.6316067,2544.8,2544.7,8.12873631]
[1748879715829,4.6316067,2544.8,2544.7,4.199]
[1748879715977,0.50082087,2545.1,2544.8,3.92952141]
[1748879716307,4.6316067,2544.9,2544.8,3.92952141]
[1748879716873,4.6316067,2544.9,2544.7,8.12867079]
[1748879717728,4.6316067,2544.9,2544.8,3.92958189]
[1748879719706,4.6316067,2544.9,2544.7,4.198]
[1748879719907,4.6316067,2544.9,2544.7,8.12769125]
[1748879720283,4.6316067,2544.9,2544.7,4.198]
[1748879720619,5.97499723,2544.9,2544.7,4.198]
[1748879721084,0.0999,2544.7,2544.1,0.7961]
[1748879721280,4.6316067,2544.4,2544.3,3.93032982]
[1748879721480,9.2632134,2544.4,2544.3,11.93032982]
[1748879721814,9.2632134,2544.4,2544.3,12.197]
[1748879722025,9.2632134,2544.4,2544.3,8.0]
[1748879722225,9.2632134,2544.4,2544.2,8.12743896]
[1748879722395,4.6316067,2544.4,2544.3,3.93035412]
[1748879724192,9.2632134,2544.4,2544.3,3.93035412]
[1748879724595,9.2632134,2544.4,2544.1,3.95059573]
[1748879724596,10.18953474,2544.4,2544.1,3.95059573]
[1748879724946,4.6316067,2544.2,2544.0,3.93079398]
[1748879725231,4.6316067,2544.1,2544.0,3.93079398]
[1748879726402,0.0999,2544.3,2544.2,3.9305086]
[1748879726742,0.0999,2544.3,2543.9,4.196]
[1748879726743,9.2632134,2544.3,2544.1,3.93058714]
[1748879727093,9.2632134,2544.3,2544.0,8.12670687]
[1748879727296,4.6316067,2544.1,2544.0,8.12670687]
[1748879728103,0.0999,2544.5,2544.3,3.93029404]
[1748879728438,4.6316067,2544.4,2544.2,3.93041798]
[1748879728599,4.6316067,2544.3,2544.2,3.93041798]
[1748879728797,4.6316067,2544.3,2544.1,3.93053768]
[1748879728798,9.2632134,2544.3,2544.1,3.93053768]
[1748879729336,10.19952474,2544.3,2544.1,8.12553768]
[1748879730234,10.19952474,2544.3,2544.2,3.9305086]
[1748879730806,10.19952474,2544.3,2544.1,4.195]
[1748879731139,10.19952474,2544.3,2544.1,8.12565303]
[1748879731626,10.19952474,2544.3,2544.1,4.195]
[1748879732427,10.19952474,2544.3,2544.1,8.12556205]
[1748879732627,9.2632134,2544.3,2544.1,8.12556205]
[1748879732867,0.0999,2544.7,2544.1,4.195]
[1748879733233,7.9799,2545.0,2544.9,3.92942748]
[1748879733429,0.40092087,2545.1,2544.9,3.92933379]
[1748879733624,4.6316067,2545.0,2544.8,3.92955939]
[1748879733941,4.6316067,2545.0,2544.8,3.92955607]
[1748879734536,0.0999,2545.2,2544.9,4.194]
[1748879734741,4.6316067,2545.0,2544.8,4.194]
[1748879734936,4.6316067,2544.9,2544.6,12.68922426]
[1748879735166,4.89496623,2545.2,2544.8,4.194]
[1748879735366,3.92921893,2545.1,2544.8,4.194]
[1748879735562,5.28140405,2545.2,2544.8,4.194]
[1748879735768,4.0295702,2544.8,2543.7,0.7515]
[1748879735967,3.92989074,2544.6,2544.3,8.0]
[1748879736135,9.2632134,2544.4,2544.2,12.194]
[1748879736333,4.6316067,2544.3,2544.2,12.194]
[1748879736534,4.6316067,2544.3,2544.2,16.1245086]
[1748879737371,4.6316067,2544.4,2544.3,3.93035412]
[1748879738473,4.6316067,2544.4,2544.3,8.12335412]
[1748879739276,4.6316067,2544.4,2544.3,16.12335412]
[1748879739674,4.6316067,2544.4,2544.3,11.93035412]
[1748879740441,4.6316067,2544.4,2544.3,8.0]
[1748879740737,10.27637407,2544.4,2544.0,3.93074723]
[1748879740940,4.6316067,2544.1,2544.0,3.93074723]
[1748879741190,4.6316067,2544.1,2543.9,3.93094476]
[1748879741344,0.0999,2544.3,2544.1,3.93050904]
[1748879741551,0.0999,2544.6,2544.4,3.9300921]
[1748879741896,1.148,2544.9,2544.4,4.192]
[1748879742045,3.92958695,2544.8,2544.3,8.0]
[1748879742246,0.91068549,2544.8,2544.5,11.92997782]
[1748879742558,0.55,2544.8,2544.5,11.92997782]
[1748879742738,1.148,2544.9,2544.1,0.8049]
[1748879742942,4.6316067,2544.3,2544.2,16.1225086]
[1748879743991,4.6316067,2544.3,2544.2,11.9305086]
[1748879744297,4.6316067,2544.3,2544.2,12.192]
[1748879744587,4.6316067,2544.3,2543.4,3.93160928]
[1748879744588,0.0999,2544.2,2543.4,0.8163]
[1748879744749,4.6316067,2543.5,2543.2,0.8318]
[1748879744944,4.6316067,2543.3,2543.2,5.0228]
[1748879745143,0.0999,2543.8,2543.5,3.93155833]
[1748879745444,9.44385076,2543.6,2543.5,3.93159032]
[1748879745644,9.44385076,2543.6,2543.4,3.93167781]
[1748879745847,9.84301925,2543.6,2543.3,8.0]
[1748879746047,0.39916849,2543.6,2543.3,12.191]
[1748879746260,0.55,2543.7,2543.4,3.93163661]
[1748879746460,9.44385076,2543.5,2543.4,3.93163661]
[1748879749381,9.44385076,2543.5,2543.3,16.12282916]
[1748879749569,9.44385076,2543.5,2543.3,12.191]
[1748879749769,10.42657703,2543.5,2543.3,12.191]
[1748879750490,0.55,2543.4,2543.3,4.191]
[1748879750706,0.6499,2543.4,2543.2,4.191]
[1748879750881,0.55,2543.5,2543.3,3.9318995]
[1748879751079,0.55,2543.5,2543.1,0.02]
[1748879751080,9.44385076,2543.4,2543.1,0.02]
[1748879751401,9.44385076,2543.4,2543.2,8.12304654]
[1748879751607,9.44385076,2543.4,2543.3,3.9318995]
[1748879753230,9.44385076,2543.4,2543.1,8.8038]
[1748879753231,0.0999,2543.2,2543.1,0.02]
[1748879753573,0.55,2543.3,2543.1,3.95220872]
[1748879753774,0.55,2543.3,2543.1,0.02]
[1748879755694,10.49156703,2543.4,2543.1,0.02]
[1748879756244,10.49156703,2543.4,2543.2,3.93202522]
[1748879756599,10.70131122,2543.4,2543.2,3.93202522]
[1748879756946,10.70131122,2543.4,2543.1,0.02]
[1748879757746,1.46329096,2543.3,2543.1,0.02]
[1748879757953,1.04771627,2543.4,2543.1,4.73095429]
[1748879758271,9.44385076,2543.2,2543.1,0.02]
[1748879760453,9.44385076,2543.5,2543.4,3.9317449]
[1748879760750,0.38341194,2543.6,2543.4,3.93167674]
[1748879760946,0.38341194,2543.6,2543.3,5.0125]
[1748879760947,13.37528652,2543.6,2543.5,4.19]
[1748879761099,15.90765585,2543.6,2543.4,4.189]
[1748879761302,9.44385076,2543.5,2543.4,4.189]
[1748879763352,9.99385076,2543.5,2543.4,4.189]
[1748879763538,9.99385076,2543.5,2543.1,12.72647418]
[1748879763837,9.44385076,2543.2,2543.1,12.72647418]
[1748879765828,9.44385076,2543.2,2543.1,12.208]
[1748879766027,9.44385076,2543.2,2543.1,0.02]
[1748879766349,10.38823584,2543.2,2543.1,0.02]
[1748879766570,9.44385076,2543.2,2543.1,0.02]
[1748879767253,4.63882473,2543.2,2543.1,0.02]
[1748879768117,4.63882473,2543.2,2543.1,3.95220872]
[1748879768324,4.63882473,2543.2,2543.1,0.02]
[1748879768665,4.63882473,2543.2,2543.1,3.95220872]
[1748879768955,4.63882473,2543.2,2543.1,0.02]
[1748879770240,8.57087883,2543.2,2543.1,0.02]
[1748879770443,5.49591261,2543.2,2543.1,0.02]
[1748879771243,4.63882473,2543.2,2543.1,0.02]
[1748879771939,4.63882473,2543.2,2543.1,3.95220872]
[1748879772151,4.63882473,2543.2,2543.1,4.76910872]
[1748879772469,4.63882473,2543.2,2543.1,0.02]
[1748879774375,13.75970356,2543.2,2543.1,0.02]
[1748879774538,6.41797735,2543.2,2543.1,0.02]
[1748879774720,4.63882473,2543.2,2543.1,3.95220872]
[1748879774924,4.63882473,2543.2,2543.1,0.02]
[1748879775359,4.63882473,2543.2,2543.1,3.95220872]
[1748879775724,3.66857075,2543.6,2543.2,8.0]
[1748879775925,4.63882473,2543.3,2543.2,11.93201597]
[1748879776741,4.63882473,2543.3,2543.2,12.69281597]
[1748879778793,4.63882473,2543.5,2543.4,3.9317449]
[1748879779489,4.63882473,2543.5,2543.3,4.186]
[1748879779669,4.63882473,2543.5,2543.1,3.9520889]
[1748879779861,4.63882473,2543.2,2543.1,11.9520889]
[1748879780061,0.55,2543.5,2543.2,3.93195862]
[1748879780263,4.63882473,2543.3,2543.2,3.93195862]
[1748879780470,4.63882473,2543.3,2543.2,8.11695862]
[1748879781998,4.63882473,2543.3,2543.2,3.93195862]
[1748879782299,4.63882473,2543.3,2543.2,8.11695862]
[1748879783286,9.44423642,2543.4,2543.3,3.93185492]
[1748879784398,3.66857075,2543.6,2543.5,3.93159032]
[1748879784728,5.10424147,2543.6,2543.4,4.185]
[1748879785079,5.10424147,2543.6,2543.4,8.11672172]
[1748879785483,5.10424147,2543.6,2543.4,4.185]
[1748879787920,5.10424147,2543.6,2543.2,8.11598508]
[1748879788128,9.44423642,2543.4,2543.1,11.95212253]
[1748879788285,0.94442364,2543.3,2543.2,4.184]
[1748879788929,0.94442364,2543.3,2543.2,8.1150541]
[1748879789139,9.99423642,2543.4,2543.3,3.9318995]
[1748879789311,5.10424147,2543.6,2543.4,3.93168914]
[1748879789632,3.66857075,2543.6,2543.4,3.93168914]
[1748879789831,3.66857075,2543.6,2543.3,3.93181496]
[1748879790128,3.66857075,2543.6,2543.4,3.93167807]
[1748879791231,3.66857075,2543.6,2543.5,3.93159032]
[1748879791604,3.66857075,2543.6,2543.4,3.93164905]
[1748879791814,5.14925147,2543.6,2543.3,4.183]
[1748879792107,5.14925147,2543.6,2543.4,3.93173561]
[1748879792591,5.14925147,2543.6,2543.3,4.183]
[1748879792796,5.14925147,2543.6,2543.5,3.93159032]
[1748879792992,3.66857075,2543.6,2543.5,3.93159032]
[1748879793193,3.26941663,2543.6,2543.5,16.11359032]
[1748879793616,3.26941663,2543.6,2543.5,16.87859032]
[1748879796504,3.26941663,2543.6,2543.5,17.24277866]
[1748879797043,3.26941663,2543.6,2543.5,17.24277548]
[1748879797266,3.26941663,2543.6,2543.5,16.87859032]
[1748879797416,3.26941663,2543.6,2543.5,16.87759032]
[1748879798213,3.26941663,2543.6,2543.5,17.24178659]
[1748879798440,3.26941663,2543.6,2543.5,16.87759032]
[1748879798602,3.26941663,2543.6,2543.5,12.69659032]
[1748879798806,3.26941663,2543.6,2543.5,16.87759032]
[1748879800039,3.26941663,2543.6,2543.5,18.9585196]
[1748879801742,3.26941663,2543.6,2543.5,14.7775196]
[1748879802060,3.26941663,2543.6,2543.5,16.87659032]
[1748879803665,3.26941663,2543.6,2543.5,16.11159032]
[1748879811047,3.26941663,2543.6,2543.5,11.93159032]
[1748879811248,3.26941663,2543.6,2543.5,16.10859032]
[1748879812173,3.26941663,2543.6,2543.5,16.47285131]
[1748879812375,3.26941663,2543.6,2543.5,8.0]
[1748879812570,3.26941663,2543.6,2543.4,3.93166568]
[1748879812571,4.09905893,2543.6,2543.3,8.10884686]
[1748879812780,4.63595308,2543.5,2543.1,3.9521491]
[1748879812976,9.27190616,2543.2,2543.1,0.02]
[1748879813160,10.20908678,2543.2,2543.1,0.02]
[1748879813368,5.5731337,2543.2,2543.1,0.02]
[1748879813677,5.5731337,2543.2,2543.1,3.95220872]
[1748879814386,4.63595308,2543.2,2543.1,4.31670499]
[1748879814703,4.63595308,2543.2,2543.1,3.95220872]
[1748879815166,4.63595308,2543.2,2543.1,4.3167077]
[1748879815366,4.63595308,2543.2,2543.1,3.95220872]
[1748879815756,4.63595308,2543.2,2543.1,4.31669088]
[1748879816085,4.63595308,2543.2,2543.1,0.02]
[1748879816288,5.10953839,2543.2,2543.1,0.02]
[1748879816447,5.10953839,2543.2,2543.1,3.95220872]
[1748879818901,0.0999,2543.4,2543.3,3.9318995]
[1748879819100,4.73585308,2543.4,2543.3,3.9318995]
[1748879819475,4.73585308,2543.4,2543.1,0.02]
[1748879819657,4.63595308,2543.2,2543.1,0.02]
[1748879819995,4.63595308,2543.2,2543.1,3.95220872]
[1748879820194,0.0999,2543.4,2543.3,3.9318995]
[1748879820363,2.84474838,2543.5,2543.4,3.9317449]
[1748879820570,7.48070146,2543.5,2543.4,3.9317449]
[1748879821402,7.48070146,2543.5,2543.3,3.9318995]
[1748879821621,8.43572584,2543.5,2543.3,3.93183043]
[1748879821772,0.55,2543.4,2543.2,4.176]
[1748879821969,4.63595308,2543.3,2543.2,4.176]
[1748879822171,4.73585308,2543.3,2543.1,0.02]
[1748879822371,4.73585308,2543.3,2543.2,3.9320541]
[1748879822372,5.28585308,2543.3,2543.2,3.9320541]
[1748879822695,6.24941566,2543.3,2543.2,3.9320541]
[1748879822895,6.24941566,2543.3,2543.1,8.12712849]
[1748879823600,6.24941566,2543.3,2543.1,4.195]
[1748879824030,4.63595308,2543.3,2543.1,4.195]
[1748879824178,2.84474838,2543.5,2543.4,12.7249449]
[1748879824379,2.84474838,2543.5,2543.4,16.8999449]
[1748879825494,7.48070146,2543.5,2543.4,16.8999449]
[1748879825810,7.48070146,2543.5,2543.4,8.0]
[1748879825976,8.22877161,2543.5,2543.4,11.9317449]
[1748879826174,7.48070146,2543.5,2543.4,11.9317449]
[1748879826698,7.58060146,2543.5,2543.4,4.175]
[1748879827107,7.58060146,2543.5,2543.4,8.1067449]
[1748879827410,12.38881057,2543.5,2543.4,8.1067449]
[1748879827917,12.28891057,2543.5,2543.4,8.1067449]
[1748879828615,12.28891057,2543.5,2543.4,8.9177449]
[1748879828616,2.84474838,2543.5,2543.4,8.9177449]
[1748879828816,2.84474838,2543.5,2543.4,10.20270808]
[1748879830410,2.84474838,2543.5,2543.4,18.20270808]
[1748879831825,2.84474838,2543.5,2543.4,16.9177449]